Cogmind - Beta 11.1 --- EXPLORER MODE // 2022.05.09 @ 00:51:24 Player: Maher Result: Destroyed by D-53 Grenadier with Mini Grenade Launcher Performance ------------- Evolutions (0) 0 Regions Visited (2) 400 Robots Destroyed (14) 70 Value Destroyed (203) 203 Prototype IDs (0) 0 Alien Tech Used (0) 0 Bonus (0) 0 TOTAL SCORE: 673 Bonus ------- None Cogmind --------- Core Integrity 0/250 Matter 300/300 Energy 250/250 System Corruption 1% Temperature Cool (0) Movement Core (150) Ox2 Location -10/Mines Parts ------- > --- POWER (1) -------- Ion Engine > --- PROPULSION (2) --- (None) > --- UTILITY (2) ------ Improved Heat Sink Power Shielding > --- WEAPON (3) ------- (None) > --- INVENTORY (5) ---- Visual Processing Unit Signal Interpreter Seismic Detector Peak State ------------ > --- POWER ------------ Ion Engine > --- PROPULSION ------- Light Treads Light Treads > --- UTILITY ---------- Improved Heat Sink Power Shielding > --- WEAPON ----------- EM Pulse Gun Medium Laser Assault Rifle > --- INVENTORY -------- Visual Processing Unit Seismic Detector [Rating: 10] Favorites ----------- Power Ion Engine Engine Ion Engine Propulsion Light Treads Treads Light Treads Utility Power Shielding Device Improved Heat Sink Processor Targeting Computer Protection Power Shielding Weapon Assault Rifle Energy Gun EM Pulse Gun Ballistic Gun Assault Rifle Impact Weapon Hammer Slashing Weapon Mining Claw Build | -11 -10 -10 ------- Run | Scr Mat Min Slots Evolved 1 | . 1 . Power . | . . . Propulsion . | . . . Utility . | . . . Weapon 1 | . 1 . Parts Attached 14 | 5 8 1 Power 1 | . 1 . Engine 1 | . 1 . Core . | . . . Reactor . | . . . Propulsion 2 | 2 . . Treads 2 | 2 . . Leg . | . . . Wheel . | . . . Hover . | . . . Flight . | . . . Utility 4 | 2 2 . Device 1 | . 1 . Storage . | . . . Processor 1 | 1 . . Hackware . | . . . Protection 2 | 1 1 . Artifact . | . . . Weapon 7 | 1 5 1 Energy Gun 2 | . 2 . Energy Cannon . | . . . Ballistic Gun 2 | 1 1 . Ballistic Cannon . | . . . Launcher . | . . . Special Weapon . | . . . Impact Weapon 1 | . . 1 Slashing Weapon 2 | . 2 . Piercing Weapon . | . . . Special Melee Weapon . | . . . Unidentified Prototypes . | . . . Parts Lost 5 | . . 5 Power . | . . . Propulsion 2 | . . 2 Utility . | . . . Weapon 3 | . . 3 Highest Loss Streak 5 | . . 5 To Critical Strikes . | . . . Average Slot Usage (%) 92 | . 90 97 Engine 11 | . 11 12 Treads 24 | . 25 24 Device 7 | . 6 12 Processor 4 | . 5 . Protection 11 | . 11 12 Energy Gun 12 | . 13 11 Ballistic Gun 11 | . 11 11 Impact Weapon 2 | . . 8 Slashing Weapon 3 | . 3 3 Naked Turns . | . . . Heaviest Build 13 | 3 13 13 Greatest Support 40 | 3 40 40 Greatest Overweight (x) 2 | . 1 2 Average Overweight (x) . | . . . Largest Inventory Capacity 5 | 5 5 5 Average Capacity 5 | 5 5 5 Most Carried 5 | 2 5 5 Average Carried 2 | . 2 3 Final Capacity 5 | 5 5 5 Final Carried 4 | 2 4 3 Class Distribution -------------------- 89% | Hacker-Mutant 10% | Hacker-Tank Dominant Class ---------------- Hacker-Mutant | -10/Materials Hacker-Mutant | -10/Mines Resources | -11 -10 -10 ----------- Run | Scr Mat Min Matter Collected 442 | 259 158 25 Remotely . | . . . Salvage Created 442 | 93 264 85 Parts 33 | 6 21 6 Haulers Intercepted . | . . . Recyclers Shooed . | . . . Parts Field Recycled . | . . . Retrieved Matter . | . . . Parts Self-Destructed . | . . . Prevented . | . . . Kills | -11 -10 -10 ------- Run | Scr Mat Min Combat Hostiles Destroyed 10 | . 6 4 Guns 10 | . 6 4 Classes Destroyed 7 | 2 4 1 Worker 1 | . 1 . Tunneler 1 | 1 . . Recycler 1 | 1 . . Watcher 3 | . 3 . Swarmer 6 | . 4 2 Grunt 2 | . 2 . Assembled 2 | . . 2 Best Kill Streak 3 | 1 3 2 Combat Bots Only 2 | . 2 2 Max Kills in Single Turn 1 | 1 1 1 Gunslinging . | . . . Exploded . | . . . Melee . | . . . Uniques/NPCs Destroyed . | . . . Combat | -11 -10 -10 -------- Run | Scr Mat Min Damage Taken 825 | . 109 716 Core 252 | . 29 223 Absorbed by Shields . | . . . Redirected to Shielding 18 | . 4 14 Regen/Repaired (Parts) 13 | . 13 . Core Remaining (%) 100 | 100 . . Volleys Fired 40 | 3 26 11 Largest 2 | 1 2 2 Hottest 60 | 20 60 60 Shots Fired 71 | 3 46 22 Gun 71 | 3 46 22 Cannon . | . . . Launcher . | . . . Special . | . . . Kinetic 40 | 3 26 11 Thermal 10 | . 10 . Explosive . | . . . Electromagnetic 21 | . 10 11 Robot Hit Streak 18 | 3 18 11 Robot Miss Streak 2 | . 2 1 Penetration Max . | . . . Secondary Targets 2 | . 2 . Max Gunslinging Chain 1 | . 1 . Shots Hit Robots 55 | 3 33 19 Core Hits 26 | 2 15 9 Critical Kills . | . . . Critical Parts Destroyed 1 | . 1 . Critical Strikes 1 | . 1 . Destroy 1 | . 1 . Melee Attacks 1 | . . 1 Impact 1 | . . 1 Slashing . | . . . Piercing . | . . . Sneak Attacks . | . . . Combat Hostiles . | . . . Follow-up Attacks . | . . . Damage Inflicted 663 | 37 409 217 Guns 648 | 37 409 202 Cannons . | . . . Explosions . | . . . Melee 15 | . . 15 Ramming . | . . . Kinetic 349 | 37 211 101 Thermal 83 | . 83 . Explosive . | . . . Electromagnetic 216 | . 115 101 Impact 15 | . . 15 Slashing . | . . . Piercing . | . . . Highest Corruption 1 | . 1 1 Average Corruption 1 | . 1 1 Corruption Purged . | . . . Corruption Blocked . | . . . Effects 6 | . . 6 Message Errors 1 | . . 1 Energy Discharges 2 | . . 2 Data Loss (minor) 2 | . . 2 Misfires 1 | . . 1 Overload Shots . | . . . Overflow Damage . | . . . Projectiles . | . . . Explosions . | . . . Melee . | . . . Knockbacks . | . . . Impact . | . . . Kinetic . | . . . Secondary . | . . . Self-Inflicted Damage . | . . . Shots . | . . . Rammed . | . . . Targets Rammed . | . . . Kicked . | . . . Crushed . | . . . Highest Temperature 21 | . 21 6 Average Temperature 7 | . 7 6 Received Heat Transfer 158 | . 78 80 Siege Activations . | . . . Robots Corrupted . | . . . Combat Hostiles . | . . . Parts Fried . | . . . Impact Corruptions . | . . . Robots Melted . | . . . Combat Hostiles . | . . . Parts Melted 1 | . 1 . Heat Transferred 333 | . 333 . Parts Sabotaged . | . . . Parts Stolen . | . . . Parts Stripped . | . . . Power Chain Reactions . | . . . Missiles Intercepted . | . . . Alert | -11 -10 -10 ------- Run | Scr Mat Min Peak Influence 148 | 10 148 74 Initial 19 | . 4 19 Average 26 | 4 29 20 Maximum Alert Level . | . . . Low Security (%) 100 | 100 100 100 Level 1 . | . . . Level 2 . | . . . Level 3 . | . . . Level 4 . | . . . Level 5 . | . . . High Security . | . . . Max Security . | . . . Squads Dispatched 1 | . 1 . Investigation 1 | . 1 . Extermination . | . . . Reinforcement . | . . . Assault . | . . . Garrison . | . . . Intercept . | . . . Searches Triggered . | . . . Construction Impeded . | . . . Haulers Reinforced . | . . . Active Scanning Responses . | . . . Cargo Convoy Interrupts . | . . . Stealth | -11 -10 -10 --------- Run | Scr Mat Min Distress Signals . | . . . Communications Jammed . | . . . Distress Signals . | . . . Times Spotted 23 | . 9 14 Peak Tracking Total 9 | . 3 9 Tactical Retreats . | . . . Traps | -11 -10 -10 ------- Run | Scr Mat Min Traps Triggered 1 | . 1 . Indirectly . | . . . Trap Hack Attempts . | . . . Triggered . | . . . Disarmed 9 | . 9 . Reprogrammed . | . . . Reused . | . . . Traps Extracted . | . . . Installed . | . . . Triggered . | . . . Machines | -11 -10 -10 ---------- Run | Scr Mat Min Machines Disabled . | . . . Max in Single Turn . | . . . Machines Sabotaged . | . . . Garrisons Compromised . | . . . Overloaded Fab Kills . | . . . Hacking | -11 -10 -10 --------- Run | Scr Mat Min Machines Accessed 7 | . 7 . Terminals 5 | . 5 . Fabricators . | . . . Repair Stations 1 | . 1 . Recycling Units 1 | . 1 . Scanalyzers . | . . . Garrison Access . | . . . Total Hacks 23 | . 23 . Successful 20 | . 20 . Failed 3 | . 3 . Catastrophic . | . . . Database Lockouts . | . . . Manual . | . . . Terminals 17 | . 17 . Fabricators . | . . . Repair Stations 3 | . 3 . Recycling Units 3 | . 3 . Scanalyzers . | . . . Garrison Access . | . . . Terminal Hacks 14 | . 14 . Record 5 | . 5 . Disarm Traps 4 | . 4 . Dispatch Records 1 | . 1 . Security Status 1 | . 1 . Patrol Status 1 | . 1 . Transport Status 1 | . 1 . Hauler Manifests 1 | . 1 . Fabricator Hacks . | . . . Repair Station Hacks 3 | . 3 . Scan Component 1 | . 1 . Repair 1 | . 1 . Refit 1 | . 1 . Recycling Unit Hacks 3 | . 3 . Process 1 | . 1 . Report Inventory 1 | . 1 . Retrieve Components 1 | . 1 . Scanalyzer . | . . . Garrison Access Hacks . | . . . Unauthorized Hacks . | . . . Terminals . | . . . Fabricators . | . . . Repair Stations . | . . . Recycling Units . | . . . Scanalyzers . | . . . Garrison Access . | . . . Data Cores Recovered . | . . . Used . | . . . Hacking Detections 4 | . 4 . Full Trace Events 2 | . 2 . Feedback Events . | . . . Feedback Blocked . | . . . Robot Schematics Acquired . | . . . Robots Built . | . . . Authchips . | . . . Time . | . . . Total Robot Build Rating . | . . . Part Schematics Acquired . | . . . Parts Built . | . . . Authchips . | . . . Time . | . . . Total Part Build Rating . | . . . Parts Repaired 1 | . 1 . Time 26 | . 26 . Parts Recycled . | . . . Recycled Matter . | . . . Retrieved Matter . | . . . Retrieved Components 9 | . 9 . Parts Scanalyzed . | . . . Part Schematics Acquired . | . . . Parts Damaged . | . . . Bothacking | -11 -10 -10 ------------ Run | Scr Mat Min Used RIF Installer . | . . . Robots Hacked . | . . . Non-combat . | . . . Combat . | . . . Robot Hacks Applied . | . . . Relay Couplers Released . | . . . Fabnet Peak Effective % . | . . . Robots Rewired . | . . . Allies Hacked . | . . . Hacks Repelled . | . . . Allies | -11 -10 -10 -------- Run | Scr Mat Min Total Allies . | . . . Largest Group . | . . . Highest-Rated Group . | . . . Highest-Rated Ally . | . . . Total Orders . | . . . Ally Attacks . | . . . Total Damage . | . . . Kills . | . . . Allies Corrupted . | . . . Allies Melted . | . . . Intel | -11 -10 -10 ------- Run | Scr Mat Min Robot Analysis Total . | . . . Derelict Logs Recovered . | . . . Drone Launches . | . . . Drone Recoveries . | . . . Exploration | -11 -10 -10 ------------- Run | Scr Mat Min Turns Passed 1700 | 52 1184 464 Spaces Moved 1146 | 68 811 267 Core 317 | 68 241 8 Treads 829 | . 570 259 Legs . | . . . Wheels . | . . . Hover . | . . . Flight . | . . . Fastest Speed 50 | 50 50 150 Average Speed 134 | 50 133 159 Slowest Speed 160 | 50 160 160 Overloaded Moves . | . . . Propulsion Burnouts . | . . . Robots Hopped . | . . . Cave-ins Triggered . | . . . Exploration Rate (%) 50 | 4 91 55 Regions Visited 2 Branch Regions 1 Pre-discovered Areas . | . . . Known Exits Taken 2 | 1 1 . Unknown Exits Taken . | . . . Scrap Searched 1 | . . 1 Spaces Dug . | . . . Terrain Destroyed . | . . . Melee . | . . . Projectile . | . . . AOE . | . . . Terrain Rammed . | . . . Walls Destroyed . | . . . Machines Disabled . | . . . Actions | -11 -10 -10 --------- Run | Scr Mat Min Total 1234 | 82 869 283 Wait . | . . . Move 1144 | 67 810 267 Hop . | . . . Pick Up 21 | 7 13 1 Fast Attach . | . . . Attach 14 | 5 8 1 Detach 4 | . 4 . Swap . | . . . Drop 10 | . 8 2 Fire 40 | 3 26 11 Melee 1 | . . 1 Ram . | . . . Kick . | . . . Crush . | . . . Escape Stasis . | . . . Rewire . | . . . Trap . | . . . Miscellaneous . | . . . Route ------- -11/Scrapyard -10/Materials (discovered 5 exits: *Mat x3 / *Min x2) -10/Mines History --------- Turn | Location | Event 5 | -11/Scrapyard | Identified exit to Materials 5 | -11/Scrapyard | Discovered exit to Materials (range 16) 53 | -11/Scrapyard | Entered Materials 53 | -10/Materials | Evolved 1 slot: Weapon x1 148 | -10/Materials | Repaired Seismic Detector 311 | -10/Materials | Build established: Hacker-Mutant 367 | -10/Materials | Identified exit to Mines 367 | -10/Materials | Discovered exit to Mines (range 12) 468 | -10/Materials | Identified exit to Materials 468 | -10/Materials | Discovered exit to Materials (range 10) 818 | -10/Materials | Discovered exit to Materials (range 9) 1070 | -10/Materials | Discovered exit to Materials (range 16) 1122 | -10/Materials | Discovered exit to Mines (range 15) 1237 | -10/Materials | Entered Mines 1626 | -10/Mines | Assembled infested the area 1631 | -10/Mines | Assisted by a Guerilla fighting off Assembled 1684 | -10/Mines | Core integrity fell below 50% 1693 | -10/Mines | Core integrity fell below 20% 1701 | -10/Mines | Destroyed by D-53 Grenadier with Mini Grenade Launcher Last Messages --------------- 01686_ The unstable cave ceiling collapses. 01686_ U-05 Engineer lays Concrete. 01686_ U-05 Engineer builds a Wall. 01686_ as-93113 destroyed. 01687_ U-05 Engineer lays Concrete. 01690_ Hammer destroyed. 01690_ Lgt. Treads destroyed. 01690_ U-05 Engineer destroyed. 01690_ U-05 Engineer lays Concrete. 01691_ The unstable cave ceiling collapses. 01692_ U-05 Engineer lays Concrete. 01694_ The unstable cave ceiling collapses. 01694_ U-05 Engineer lays Concrete. 01695_ The unstable cave ceiling collapses. 01695_ U-05 Engineer lays Concrete. 01697_ The unstable cave ceiling collapses. 01697_ U-05 Engineer lays Concrete. 01697_ U-05 Engineer destroyed. 01698_ The unstable cave ceiling collapses. [Achievement: First Step to Greatness] Map ----- +----------------------------------------------------+ | ????????????????????????## ### ##????# #???# | | ???????????????????????## %% ##???# ##### | | ????????????????????#### ##??# %%! | | ???????????????????## # #### ##### | | ???????????????????# #### ## ##??? | | ???????????????????# ##??# #### #??? | | ???????????????????## ##??# ##?#### #??? | | ????????????????????## #??# #????## ##??? | | ????????????????????## #??### #?????#####???? | | ?????????????????#### ##?### ########??????? | | ?????????????????# ### #??????? | | ?????????????????# # ## """ """ #??????? | | ?????????????????# ## """ """ #??????? | | ?????????????????# ### """ """ #??????? | | ?????????????????# # ##?# #??????? | | ?????????????????## ### """ """ #??????? | | ????????????###### # # ## """ """ #??????? | | ????????? # """ """ #??????? | | ????????? # #??????? | | ?????????############# # # #??????? | | ??????????????????# ###### #####??????? | | ??????????????????#### #??### #??????????? | | ????????????????###??#= ##?# #??????#???? | | ????????????????# #?# #?# ###???? #???? | | ????????????????? ## d #### ##### ##??? | | ????????????????? ## @ ! #?# #??? | | ????????#?????? % #?# ####### #?? | | ???????# ?? ! ##?# #?????????? | | ???????# ?? #### " " %#### #?????????????? | | ???????# ??# ?????## """ %#?????????????? | | ???????# #???????????## """ #?????????????? | | ???????# #??????????## #######?????????????? | | ???????# #??????????# ###???????????????????? | | ???????# #??????????# ###?????????????????????? | | ???????# #??????????## ##???????????????????????? | | ???????# ##???#####?## ##???????????????????????? | | ??????## ##?## ### ##??????????????????????? | | ?????## ### #??????????????????????? | | ?????# #??????????????????????? | | ?????# ##??????????????????????? | | ?????## ##### ## ##???????????????????????? | | ??????######???## #######????????????????????????? | | ????????????????###??????????????????????????????? | | ?????????????????????????????????????????????????? | | ?????????????????????????????????????????????????? | | ?????????????????????????????????????????????????? | | ?????????????????????????????????????????????????? | | ?????????????????????????????????????????????????? | | | | | +----------------------------------------------------+ Best States ------------- Heat Dissipation 39 Energy Generation 10 Energy Capacity 250 Matter Stores 300 Matter Capacity 300 Sight Range 16 Terrain Scan Density 10 Resistance: KI 35 Resistance: TH 35 Resistance: EX 35 Resistance: EM 35 Resistance: I 35 Resistance: S 35 Resistance: P 35 Power Shielding 33 Evasion (%) 50 Targeting Accuracy 5 Recoil Reduction 2 Offensive Hacking 20 Item Schematics ----------------- None Robot Schematics ------------------ None Fabricated ------------ Nothing Alien Tech Used ----------------- None Achievements -------------- Crack Shot First Step to Greatness One Hack Too Far Part-time Mechanic Shopping List Challenges ------------ None Game ------ Seed UltimateBombardmentArray Manual? 0 Play Time 00:38:24 Cumulative 2.4 hours Start 2022.05.09 @ 00:05:49 End 2022.05.09 @ 00:51:24 Sessions 1 Manual Loads 0 Difficulty Explorer Special Mode None Game No. 4 Rogue 3 Adventurer 0 Explorer 1 Win Type - Total 0 Types 0/0/0/0/0/0/0/0/0 Lore% 1 Gallery% 3 Achievement% 1 Wizard Run 0 Options --------- ASCII 0 Keyboard 0 Movement Mouse Keybinds 0 Fullscreen 1 Font 24/Smallcaps Map View 113x50 Tactical HUD 1 Map Filters NONE Filters NONE Steam 1 RUN: da21c17c-b4cc-4ea9-9436-f55807eea11e